bitfinex-derivatives/quotes_SOLF0:USTF0_20260107
["timestamp","ask_amount","ask_price","bid_price","bid_amount"]
[1767777211084,0.04628507,139.03,138.97,0.32442104]
[1767777212089,0.04628507,139.03,138.98,0.31972998]
[1767777212281,0.04628507,139.03,138.94,0.31972998]
[1767777212683,100.7477,139.07,138.94,0.31972998]
[1767777213193,0.04721498,139.0,138.94,0.31972998]
[1767777213694,0.04721498,139.0,138.95,6.80142998]
[1767777213901,0.04721498,139.0,138.93,0.72328998]
[1767777217486,0.04721498,139.0,138.93,0.40356]
[1767777218191,3.72729502,138.99,138.93,0.40356]
[1767777218386,0.04721498,139.0,138.93,0.40356]
[1767777218589,1.39436338,138.98,138.93,0.40356]
[1767777219487,0.04978339,138.97,138.93,0.72328998]
[1767777219693,1.39436338,139.0,138.93,0.72328998]
[1767777220592,6.4788,139.02,138.93,0.72328998]
[1767777220984,10.21159717,139.04,138.94,0.31972998]
[1767777221801,100.7537,139.06,138.94,0.31972998]
[1767777221802,6.477,139.06,138.94,0.31972998]
[1767777222697,104.48009717,139.07,138.93,0.72328998]
[1767777222698,6.4786,139.03,138.93,0.72328998]
[1767777224600,6.4786,139.03,138.94,0.31972998]
[1767777226102,100.7604,139.05,138.94,0.31972998]
[1767777226103,6.4775,139.05,138.94,0.31972998]
[1767777227604,6.4775,139.05,138.95,0.31972998]
[1767777228496,6.4775,139.05,138.93,0.72328998]
[1767777228497,6.06928249,139.03,138.93,0.72328998]
[1767777228900,106.84568249,139.03,138.93,0.72328998]
[1767777229100,6.4794,139.01,138.93,0.72328998]
[1767777235607,6.4798,139.0,138.93,0.72328998]
[1767777237305,6.4798,139.0,138.94,0.31972998]
[1767777237511,6.4789,139.02,138.94,0.31972998]
[1767777237814,6.06928249,139.07,138.94,0.31972998]
[1767777237815,100.7522,139.06,138.94,0.31972998]
[1767777238405,0.05263195,139.01,138.99,0.05213544]
[1767777238810,6.478,139.04,138.99,0.05213544]
[1767777239218,0.04887432,139.01,138.99,0.05213544]
[1767777240327,6.4771,139.06,138.99,0.05213544]
[1767777242910,6.4771,139.06,138.99,0.36657363]
[1767777243412,6.4761,139.08,138.99,0.36657363]
[1767777243811,6.4761,139.08,138.99,0.31443819]
[1767777244211,6.4761,139.08,139.02,0.05457047]
[1767777244417,6.4766,139.07,139.02,0.05457047]
[1767777248707,100.738,139.08,138.97,0.30339906]
[1767777248912,100.7443,139.07,138.97,0.30339906]
[1767777250618,6.4775,139.05,138.97,0.30339906]
[1767777251120,0.05026743,139.02,138.97,0.30339906]
[1767777252116,0.05026743,139.02,138.98,0.04629859]
[1767777254514,0.05026743,139.02,138.93,0.70695906]
[1767777254920,100.7838,139.02,138.93,0.70695906]
[1767777255229,100.7838,139.02,138.93,0.40356]
[1767777255427,6.4803,138.99,138.93,0.40356]
[1767777255725,6.526304,138.99,138.93,0.40356]
[1767777255911,0.046004,138.99,138.93,0.40356]
[1767777256618,6.481,138.98,138.93,0.40356]
[1767777261421,0.046004,138.99,138.93,0.40356]
[1767777265124,6.526304,138.99,138.93,0.40356]
[1767777271529,6.4807,138.98,138.93,0.40356]
[1767777273733,6.4812,138.97,138.93,0.40356]
[1767777273934,6.4812,138.97,138.9,0.31902923]
[1767777274833,0.04847348,138.95,138.9,0.31902923]
[1767777277233,0.04847348,138.95,138.75,79.8818803]
[1767777277234,2.17846126,138.94,138.86,0.31902923]
[1767777277430,6.483,138.93,138.86,0.31902923]
[1767777278027,0.04652352,138.91,138.86,0.31902923]
[1767777279238,0.04652352,138.91,138.82,0.31902923]
[1767777279635,21.51366658,138.93,138.82,0.31902923]
[1767777279932,8.66116126,138.94,138.84,0.31902923]
[1767777280531,8.66116126,138.94,138.86,0.31902923]
[1767777282439,0.05093254,138.91,138.89,0.05057565]
[1767777283740,2.17846126,138.94,138.89,0.05057565]
[1767777287637,2.17846126,138.94,138.84,100.9074]
[1767777287638,2.17846126,138.91,138.78,0.31902923]
[1767777287837,2.17846126,138.87,138.78,0.31902923]
[1767777288628,100.8615,138.91,138.77,100.9549]
[1767777288629,1.39678751,138.86,138.79,6.80822923]
[1767777288833,1.39678751,138.86,138.79,0.31902923]
[1767777290331,1.39678751,138.84,138.79,0.31902923]
[1767777291842,1.39678751,138.86,138.79,0.31902923]
[1767777294646,7.88318751,138.86,138.79,0.31902923]
[1767777296954,1.39678751,138.81,138.76,0.31902923]
[1767777297151,1.39678751,138.83,138.76,0.31902923]
[1767777298458,6.4864,138.86,138.76,0.31902923]
[1767777298649,6.4854,138.88,138.76,0.31902923]
[1767777298844,1.39678751,138.84,138.76,0.31902923]
[1767777299153,1.39678751,138.84,138.77,0.31902923]
[1767777299754,6.486,138.87,138.77,0.31902923]
[1767777300055,1.39678751,138.84,138.77,0.31902923]
[1767777301357,100.9081,138.85,138.68,135.38307712]
[1767777301653,100.8924,138.87,138.74,0.33008549]
[1767777301849,6.4858,138.87,138.77,0.33008549]
[1767777302160,1.39678751,138.86,138.77,0.33008549]
[1767777302459,1.39678751,138.87,138.79,0.33008549]
[1767777303062,1.39678751,138.9,138.8,0.33008549]
[1767777303350,1.39678751,138.91,138.82,0.37583718]
[1767777303558,1.39678751,138.91,138.82,0.33008549]
[1767777304252,1.39678751,138.91,138.85,0.05180193]
[1767777304452,1.39678751,138.93,138.85,0.38188742]
[1767777304849,1.39678751,138.93,138.85,0.33008549]
[1767777305260,1.39678751,138.93,138.88,0.05198413]
[1767777305553,1.39678751,138.95,138.88,0.05198413]
[1767777306558,6.482,138.96,138.88,0.05198413]
[1767777306763,1.39678751,138.92,138.88,0.05198413]
[1767777308361,1.39678751,138.93,138.88,0.05198413]
[1767777308565,6.482,138.96,138.88,0.05198413]
[1767777309059,107.3307,138.93,138.81,0.3310137]
[1767777309456,100.8536,138.92,138.81,0.3310137]
[1767777309662,3.73742231,138.91,138.81,0.3310137]
[1767777310363,10.22162231,138.91,138.81,0.3310137]
[1767777312060,10.22162231,138.91,138.78,6.8208137]
[1767777312061,6.4846,138.9,138.78,6.8208137]
[1767777312267,6.4846,138.9,138.79,0.3310137]
[1767777313167,3.73742231,138.91,138.8,0.3310137]
[1767777313960,10.21992231,138.94,138.82,101.2526137]
[1767777314160,104.55582231,138.97,138.84,0.3310137]
[1767777315664,6.4816,138.96,138.85,0.3310137]
[1767777317062,6.4816,138.96,138.85,6.8173137]
[1767777317361,6.4816,138.96,138.86,0.3310137]
[1767777318560,6.4816,138.96,138.86,6.8168137]
[1767777319268,6.4816,138.96,138.87,0.3310137]
[1767777321270,6.4816,138.96,138.87,6.8165137]
[1767777321471,6.4822,138.95,138.87,0.3310137]
[1767777324869,100.8324,138.95,138.84,0.3310137]
[1767777325070,104.56982231,138.95,138.84,0.3310137]
[1767777326674,6.4831,138.93,138.84,0.3310137]
[1767777328575,7.87853785,138.93,138.85,0.3310137]
[1767777328771,6.4831,138.93,138.85,0.3310137]
[1767777329676,1.39543785,138.92,138.85,0.3310137]
[1767777331375,1.39543785,138.93,138.86,0.3310137]
[1767777331579,7.87753785,138.95,138.86,0.3310137]
[1767777332281,7.87753785,138.95,138.86,6.8170137]
[1767777332967,1.39543785,138.93,138.84,6.81392849]
[1767777334872,6.4826,138.94,138.84,6.81392849]
[1767777335179,1.39543785,138.92,138.84,6.81392849]
[1767777335981,1.39543785,138.92,138.84,0.32702849]
[1767777336184,1.39543785,138.9,138.84,0.32702849]
[1767777337982,1.39543785,138.91,138.84,0.32702849]
[1767777341086,1.39543785,138.93,138.85,0.32702849]
[1767777342287,7.87813785,138.94,138.86,0.32702849]
[1767777342488,6.4827,138.94,138.86,0.32702849]
[1767777343480,1.39543785,138.93,138.84,0.32702849]
[1767777343683,6.4831,138.93,138.84,0.32702849]
[1767777343883,1.39543785,138.91,138.84,0.32702849]
[1767777345088,0.04557032,138.89,138.86,0.05477815]
[1767777345383,6.4831,138.93,138.86,0.05477815]
[1767777345687,1.39543785,138.92,138.86,0.05477815]
[1767777348695,1.39543785,138.87,138.79,0.32702849]
[1767777349195,1.39543785,138.89,138.8,0.32702849]
[1767777349791,6.4831,138.93,138.82,0.32702849]
[1767777350096,1.39543785,138.91,138.82,0.32702849]
[1767777350488,6.4831,138.93,138.82,0.32702849]
[1767777351599,6.4831,138.93,138.83,0.32702849]
[1767777353494,6.4831,138.93,138.84,0.32702849]
[1767777354590,2.18065324,138.94,138.85,0.32702849]
[1767777355397,8.66335324,138.94,138.85,0.32702849]
[1767777357795,6.4827,138.94,138.85,0.32702849]
[1767777358998,6.4816,138.96,138.86,0.32702849]
[1767777359198,24.29247352,139.0,138.86,0.32702849]
[1767777360001,6.4807,138.98,138.88,0.32702849]
[1767777360197,2.18065324,139.0,138.88,0.32702849]
[1767777360601,2.18065324,139.0,138.9,0.32702849]
[1767777361300,102.98225324,139.0,138.87,6.81252849]
[1767777361501,2.18065324,138.97,138.87,0.32702849]
[1767777362204,103.00105324,138.97,138.85,6.79923838]
[1767777362505,103.00105324,138.97,138.86,0.31273838]
[1767777363704,6.4822,138.95,138.86,0.31273838]
[1767777367602,0.04655919,138.92,138.86,0.31273838]
[1767777369308,0.04655919,138.92,138.87,0.32674294]
[1767777369706,6.4813,138.97,138.87,0.32674294]
[1767777370605,6.4813,138.97,138.88,0.32674294]
[1767777371004,2.18065324,138.98,138.88,0.32674294]
[1767777371206,2.18065324,138.98,138.91,0.0473225]
[1767777372720,6.4803,138.99,138.91,0.0473225]
[1767777376216,2.18065324,138.99,138.91,0.37406544]
[1767777376523,2.18065324,138.99,138.91,0.0473225]
[1767777376720,102.98365324,138.99,138.91,0.0473225]
[1767777377614,6.4813,138.97,138.91,0.0473225]
[1767777380121,102.98365324,138.99,138.91,0.0473225]
[1767777380316,2.18065324,139.02,138.91,0.37406544]
[1767777380812,2.18065324,139.02,138.91,0.32674294]
[1767777381216,2.18065324,139.02,138.95,0.05421477]
[1767777381529,6.4794,139.01,138.95,0.05421477]
[1767777385530,0.04886241,138.99,138.95,0.05421477]
[1767777387132,0.04886241,138.99,138.9,6.81084294]
[1767777387133,2.22951565,138.99,138.9,6.81084294]
[1767777387333,2.18065324,138.99,138.9,6.81084294]
[1767777387632,2.18065324,138.99,138.9,0.32674294]
[1767777388436,0.04929128,138.96,138.9,0.32674294]
[1767777408344,0.04929128,138.96,138.91,0.32209126]
[1767777412260,0.04929128,138.96,138.85,100.9006]
[1767777412261,1.39434581,138.93,138.89,0.32209126]
[1767777412557,1.39434581,138.93,138.87,0.32209126]
[1767777413561,0.04869386,138.91,138.87,0.32209126]
[1767777414053,1.44303967,138.91,138.87,0.32209126]
[1767777415357,0.04869386,138.91,138.87,0.32209126]
[1767777417760,1.39434581,138.9,138.84,0.32209126]
[1767777418062,1.44303967,138.91,138.84,0.32209126]
[1767777418258,1.39434581,138.91,138.84,0.32209126]
[1767777418963,0.0466629,138.89,138.84,0.32209126]
[1767777420855,1.44100871,138.89,138.84,0.32209126]
[1767777421464,1.39434581,138.87,138.82,0.32209126]
[1767777424261,0.05159168,138.86,138.82,0.32209126]
[1767777425951,100.8173,138.97,138.84,0.314048]
[1767777426159,1.39434581,138.9,138.84,0.314048]
[1767777427452,1.39434581,138.9,138.86,0.05364311]
[1767777427657,1.39434581,138.92,138.86,0.36769111]
[1767777428055,1.39434581,138.92,138.86,0.314048]
[1767777428555,1.39434581,138.92,138.88,0.04584655]
[1767777430969,6.4827,138.94,138.88,0.04584655]
[1767777431167,1.39434581,138.92,138.88,0.04584655]
[1767777433572,100.8357,138.95,138.84,0.314048]
[1767777433773,1.39434581,138.9,138.84,0.314048]
[1767777438973,0.05144494,138.89,138.86,0.04851812]
[1767777439472,6.4831,138.93,138.86,0.36256612]
[1767777439671,7.87744581,138.93,138.86,0.36256612]
[1767777439865,7.87744581,138.93,138.86,0.314048]
[1767777440873,7.87744581,138.93,138.88,0.05208067]
[1767777441376,1.39434581,138.93,138.88,0.05208067]
[1767777441771,6.4822,138.95,138.88,0.05208067]
[1767777441974,1.39434581,138.95,138.88,0.36612867]
[1767777442677,7.87564581,138.97,138.89,0.314048]
[1767777443577,7.87564581,138.97,138.92,0.05245895]
[1767777445079,6.4803,138.99,138.92,0.05245895]
[1767777445265,1.39434581,138.98,138.92,0.05245895]
[1767777445979,1.39434581,138.96,138.92,0.05245895]
[1767777448079,6.4809,138.98,138.92,0.05245895]
[1767777448281,1.39434581,138.96,138.92,0.05245895]
[1767777448482,6.4809,138.98,138.92,0.05245895]
[1767777448778,1.39434581,138.96,138.92,0.05245895]
[1767777449278,1.39434581,138.98,138.92,0.36650695]
[1767777449886,1.39434581,138.99,138.92,0.36650695]
[1767777451375,9.12693877,139.0,138.92,0.36650695]
[1767777451579,1.39434581,138.98,138.92,0.36650695]
[1767777452583,0.04763773,138.96,138.92,0.36650695]
[1767777453267,1.39434581,138.98,138.92,0.36650695]
[1767777454184,1.39434581,139.0,138.92,0.36650695]
[1767777454679,6.4787,139.02,138.92,0.36650695]
[1767777454680,1.39434581,138.96,138.92,0.314048]
[1767777455185,1.39434581,138.96,138.95,0.04688192]
[1767777455370,0.05199817,138.95,138.9,6.79166428]
[1767777455579,1.39434581,138.94,138.86,0.30766428]
[1767777456281,1.39434581,138.94,138.87,6.4855]
[1767777456481,1.39434581,138.94,138.88,0.30766428]
[1767777456686,1.39434581,138.94,138.89,0.04677312]
[1767777456988,1.39434581,138.95,138.89,0.04677312]
[1767777459989,1.39434581,138.97,138.89,0.3544374]
[1767777461689,1.39434581,138.97,138.89,6.8390374]
[1767777462593,1.39434581,138.95,138.89,0.3544374]
[1767777462985,1.39434581,138.95,138.89,0.30766428]
[1767777463495,1.39434581,138.95,138.91,0.05158462]
[1767777466089,1.39434581,138.97,138.91,0.05158462]
[1767777467295,1.39434581,138.95,138.91,0.05158462]
[1767777469600,0.05413576,138.94,138.87,0.30766428]
[1767777470099,1.39434581,138.95,138.87,0.30766428]
[1767777470595,1.39434581,138.95,138.87,6.79316428]
[1767777472100,1.39434581,138.95,138.88,0.30766428]
[1767777472603,6.4818,138.96,138.88,0.30766428]
[1767777473098,0.04585334,138.93,138.88,0.30766428]
[1767777473308,0.04585334,138.93,138.91,0.04699873]
[1767777478509,0.04585334,138.93,138.86,0.30766428]
[1767777480212,0.04585334,138.93,138.87,6.79306428]
[1767777480606,6.4818,138.96,138.87,6.79306428]
[1767777481107,0.05224927,138.91,138.87,6.79306428]
[1767777481309,6.4818,138.96,138.87,6.79306428]
[1767777481611,6.4821,138.95,138.85,6.80704883]
[1767777481914,2.17961746,138.94,138.86,0.32074883]
[1767777482415,2.17961746,138.94,138.84,0.32074883]
[1767777483118,2.17961746,138.91,138.82,0.32074883]
[1767777483320,103.04271746,138.91,138.82,0.32074883]
[1767777483520,100.8686,138.9,138.8,0.32074883]
[1767777483713,2.17961746,138.88,138.8,0.32074883]
[1767777484515,6.4846,138.9,138.8,0.32074883]
[1767777485015,2.17961746,138.88,138.8,0.32074883]
[1767777485208,8.66501746,138.88,138.8,0.32074883]
[1767777486321,6.4861,138.87,138.78,0.32074883]
[1767777486907,0.04771861,138.84,138.76,0.32074883]
[1767777488606,6.53531861,138.84,138.76,0.32074883]
[1767777488809,6.53531861,138.84,138.73,0.32879603]
[1767777489217,6.4876,138.84,138.73,0.32879603]
[1767777490126,2.17961746,138.85,138.75,0.32879603]
[1767777494425,2.17961746,138.85,138.75,6.81979603]
[1767777494626,2.17961746,138.85,138.76,0.32879603]
[1767777494926,0.04782635,138.81,138.76,0.32879603]
[1767777498327,0.04782635,138.81,138.74,0.32879603]
[1767777498726,2.17961746,138.82,138.74,0.32879603]
[1767777498925,2.17961746,138.79,138.71,0.32879603]
[1767777499831,2.17961746,138.82,138.71,0.32879603]
[1767777501032,8.66771746,138.82,138.72,6.82129603]
[1767777502429,8.66771746,138.82,138.7,0.32879603]
[1767777502430,103.12001746,138.8,138.7,0.32879603]
[1767777502629,2.17961746,138.77,138.68,19.58037315]
[1767777502830,2.17961746,138.77,138.68,13.08597315]
[1767777503027,2.17961746,138.74,138.64,6.82519603]
[1767777503334,2.17961746,138.74,138.65,0.32879603]
[1767777504126,2.17961746,138.74,138.66,0.32879603]
[1767777505228,2.17961746,138.75,138.66,0.32879603]
[1767777505736,5.63324283,138.74,138.66,0.32879603]
[1767777505936,2.17961746,138.75,138.66,0.32879603]
[1767777506128,0.04677188,138.72,138.66,0.32879603]
[1767777508435,2.22638934,138.72,138.64,0.32879603]
[1767777508830,2.17961746,138.72,138.64,0.32879603]
[1767777509332,8.67181746,138.74,138.64,0.32879603]
[1767777509933,12.11835172,138.73,138.64,0.32879603]
[1767777510134,6.4927,138.73,138.64,0.32879603]
[1767777510748,2.17961746,138.74,138.64,0.32879603]
[1767777510936,2.17961746,138.74,138.65,6.82479603]
[1767777511436,8.67161746,138.74,138.65,0.32879603]
[1767777512630,8.67161746,138.74,138.63,6.4969]
[1767777512831,5.62627495,138.73,138.63,6.81722607]
[1767777513037,8.67161746,138.74,138.64,0.32032607]
[1767777513236,5.6256407,138.73,138.64,0.32032607]
[1767777513433,8.67161746,138.74,138.64,0.32032607]
[1767777513644,5.62563836,138.73,138.64,0.32032607]
[1767777513843,2.17961746,138.75,138.64,6.81652607]
[1767777514043,5.62538756,138.74,138.64,6.81652607]
[1767777514244,2.17961746,138.75,138.64,6.81652607]
[1767777514445,5.62538517,138.74,138.65,0.32032607]
[1767777514635,2.17961746,138.75,138.65,0.32032607]
[1767777514840,2.17961746,138.72,138.63,0.32032607]
[1767777515539,8.67261746,138.72,138.63,0.32032607]
[1767777517942,2.17961746,138.72,138.64,0.32032607]
[1767777518448,2.17961746,138.75,138.64,0.32032607]
[1767777518747,5.63153779,138.74,138.65,6.81602607]
[1767777518942,8.67111746,138.75,138.65,6.81602607]
[1767777519248,5.63154479,138.74,138.66,0.32032607]
[1767777519448,8.67111746,138.75,138.66,0.32032607]
[1767777519642,2.17961746,138.72,138.64,0.32032607]
[1767777520143,2.17961746,138.72,138.63,6.4967]
[1767777520342,12.12886195,138.71,138.62,0.32032607]
[1767777520537,6.4934,138.71,138.62,0.32032607]
[1767777520942,5.63658546,138.7,138.61,6.4976]
[1767777521145,6.4934,138.71,138.61,6.4976]
[1767777521344,5.63875435,138.7,138.61,6.81792607]
[1767777521540,6.4934,138.71,138.62,0.32032607]
[1767777521746,5.64008015,138.7,138.62,0.32032607]
[1767777521940,6.4934,138.71,138.62,0.32032607]
[1767777522140,5.64136017,138.7,138.62,0.32032607]
[1767777522448,6.4934,138.71,138.62,0.32032607]
[1767777522646,2.17961746,138.69,138.6,0.32032607]
[1767777522850,2.17961746,138.69,138.57,0.32032607]
[1767777522851,5.64422474,138.68,138.57,0.32032607]
[1767777523052,5.64422474,138.67,138.57,0.32032607]
[1767777523254,8.67391746,138.69,138.59,0.32032607]
[1767777523542,0.04882828,138.64,138.61,0.04887206]
[1767777525746,2.17961746,138.68,138.61,0.04887206]
[1767777525945,5.64936857,138.67,138.61,0.04887206]
[1767777526143,8.67461746,138.68,138.61,0.04887206]
[1767777526348,5.65266628,138.67,138.61,0.04887206]
[1767777526549,8.67461746,138.68,138.61,0.04887206]
[1767777526748,5.65258379,138.67,138.61,0.04887206]
[1767777527049,8.67461746,138.68,138.61,0.04887206]
[1767777527249,5.65573776,138.67,138.61,0.04887206]
[1767777527552,5.65573776,138.66,138.61,0.04887206]
[1767777527748,2.17961746,138.68,138.61,0.04887206]
[1767777527954,5.65573584,138.67,138.61,0.04887206]
[1767777528251,8.67351746,138.7,138.61,0.04887206]
[1767777528449,5.65839319,138.69,138.61,0.36919813]
[1767777528639,8.67351746,138.7,138.61,0.32032607]
[1767777528640,5.65839319,138.68,138.61,0.32032607]
[1767777528950,6.4929,138.72,138.61,0.32032607]
[1767777528951,8.67251746,138.72,138.61,0.32032607]
[1767777529147,12.15235114,138.71,138.64,0.05213852]
[1767777529458,5.65895114,138.7,138.64,0.05213852]
[1767777531140,2.17961746,138.68,138.59,6.81892607]
[1767777531341,5.65895114,138.67,138.59,6.81892607]
[1767777531542,12.15425114,138.67,138.59,0.32032607]
[1767777531742,5.65895114,138.66,138.56,0.32032607]
[1767777531939,5.65895114,138.65,138.56,0.32032607]
[1767777532145,5.65895114,138.64,138.56,0.32032607]
[1767777532450,103.21231746,138.68,138.56,0.32032607]
[1767777532638,6.4959,138.66,138.57,0.32032607]
[1767777532839,5.66578278,138.65,138.57,0.32032607]
[1767777534543,1.40115285,138.64,138.57,0.32032607]
[1767777534744,5.66578278,138.63,138.57,0.32032607]
[1767777535252,0.04627422,138.62,138.57,0.32032607]
[1767777537548,0.04627422,138.62,138.54,6.5009]
[1767777537754,0.04627422,138.62,138.55,0.32032607]
[1767777540248,5.70906204,138.61,138.55,0.32032607]
[1767777540449,0.04627422,138.62,138.55,0.32032607]
[1767777540652,5.70945279,138.61,138.55,0.32032607]
[1767777540852,0.04627422,138.62,138.55,0.32032607]
[1767777541052,5.70945279,138.61,138.55,0.32032607]
[1767777541251,0.04627422,138.62,138.55,0.32032607]
[1767777541454,5.71253182,138.61,138.55,0.32032607]
[1767777541654,0.04627422,138.62,138.55,0.32032607]
[1767777541858,5.71253655,138.61,138.55,0.32032607]
[1767777542157,0.04627422,138.62,138.56,0.30366106]
[1767777542347,5.71608234,138.61,138.56,0.30366106]
[1767777542551,0.04627422,138.62,138.56,0.30366106]
[1767777542748,5.71641301,138.61,138.56,0.30366106]
[1767777542952,1.44742707,138.62,138.56,0.30366106]
[1767777543154,8.582e-05,138.61,138.56,0.30366106]
[1767777543349,0.04627422,138.62,138.57,0.30366106]
[1767777543659,0.04627422,138.62,138.54,0.30366106]
[1767777543959,1.40115285,138.61,138.54,0.30366106]
[1767777544352,1.40115285,138.59,138.52,0.30366106]
[1767777544561,1.44771467,138.59,138.52,0.30366106]
[1767777545454,0.04656182,138.59,138.52,0.30366106]
[1767777547263,0.04656182,138.59,138.53,0.31845026]
[1767777548560,0.04656182,138.59,138.51,0.31845026]
[1767777548957,1.40115285,138.6,138.51,0.31845026]
[1767777549469,0.04597368,138.56,138.51,0.31845026]
[1767777550570,1.44712653,138.56,138.48,0.31845026]
[1767777551668,0.04597368,138.56,138.48,0.31845026]
[1767777551856,101.16487368,138.56,138.47,12.97199225]
[1767777552061,101.16487368,138.56,138.39,101.236]
[1767777552062,102.60487368,138.56,138.42,101.217]
[1767777552264,1.40115285,138.52,138.43,0.31845026]
[1767777552465,1.40115285,138.53,138.43,0.31845026]
[1767777552764,1.40115285,138.47,138.4,0.31845026]
[1767777553172,0.04831062,138.49,138.4,0.31845026]
[1767777553365,1.44946347,138.49,138.4,0.31845026]
[1767777553566,1.40115285,138.49,138.4,0.31845026]
[1767777553878,101.1397,138.53,138.43,0.31845026]
[1767777553879,1.40115285,138.53,138.43,0.31845026]
[1767777554173,101.1109,138.57,138.44,0.31845026]
[1767777554174,129.53746566,138.56,138.44,0.31845026]
[1767777554366,1.40115285,138.53,138.44,0.31845026]
[1767777554869,1.40115285,138.53,138.45,0.31845026]
[1767777555865,0.050443,138.5,138.45,0.31845026]
[1767777556065,1.40115285,138.55,138.46,0.31845026]
[1767777556264,1.40115285,138.55,138.48,0.05542235]
[1767777556460,1.40115285,138.57,138.48,0.37387261]
[1767777556662,5.4512788,138.56,138.48,0.37387261]
[1767777556858,1.40115285,138.57,138.48,0.31845026]
[1767777557062,5.45135276,138.56,138.48,0.31845026]
[1767777557267,1.40115285,138.57,138.48,0.31845026]
[1767777557469,5.451016,138.56,138.51,0.04762636]
[1767777557668,1.40115285,138.58,138.51,0.04762636]
[1767777557869,91.1584,138.6,138.51,0.04762636]
[1767777558071,1.40115285,138.58,138.51,0.04762636]
[1767777558271,7.89955285,138.6,138.5,0.31845026]
[1767777558465,5.4520997,138.59,138.5,0.31845026]
[1767777558774,7.89955285,138.6,138.53,0.05058129]
[1767777559071,5.45109946,138.59,138.53,0.05058129]
[1767777559270,1.40115285,138.6,138.53,0.05058129]
[1767777559483,5.45215884,138.59,138.53,0.05058129]
[1767777559673,1.40115285,138.6,138.53,0.05058129]
[1767777559874,5.45218146,138.59,138.53,0.05058129]
[1767777560070,1.40115285,138.58,138.53,0.05058129]
[1767777560474,185.7614,138.61,138.53,0.05058129]
[1767777560775,5.45226476,138.6,138.53,0.05058129]
[1767777560968,5.45226476,138.59,138.53,0.05058129]
[1767777561176,5.45226476,138.58,138.53,0.05058129]
[1767777561370,84.68,138.61,138.53,0.05058129]
[1767777561676,5.45280417,138.6,138.53,0.05058129]
[1767777561973,5.45280417,138.59,138.53,0.05058129]
[1767777562165,5.45280417,138.58,138.53,0.05058129]
[1767777562366,84.68,138.61,138.53,0.05058129]
[1767777562571,5.45342788,138.6,138.53,0.05058129]
[1767777562778,5.45342788,138.59,138.53,0.05058129]
[1767777562971,5.45342788,138.58,138.53,0.05058129]
[1767777563172,91.1781,138.61,138.53,0.05058129]
[1767777563367,5.45505714,138.6,138.53,0.05058129]
[1767777563574,5.45505714,138.59,138.53,0.05058129]
[1767777563774,91.1781,138.61,138.53,0.05058129]
[1767777563981,5.36039079,138.6,138.53,0.05058129]
[1767777564182,5.36039079,138.59,138.53,0.05058129]
[1767777564477,91.1781,138.61,138.53,0.05058129]
[1767777564676,5.36292189,138.6,138.53,0.05058129]
[1767777564978,5.36292189,138.59,138.53,0.05058129]
[1767777565176,84.68,138.61,138.53,0.05058129]
[1767777565383,5.36489113,138.6,138.53,0.36903155]
[1767777565576,84.68,138.61,138.53,0.36903155]
[1767777565771,5.36515707,138.6,138.53,0.36903155]
[1767777566080,6.4969,138.63,138.53,0.36903155]
[1767777566279,5.36591106,138.62,138.53,0.31845026]
[1767777566478,5.36591106,138.61,138.53,0.31845026]
[1767777566783,5.36591106,138.6,138.57,0.04988564]
[1767777567080,84.68,138.64,138.57,0.04988564]
[1767777567382,0.051491,138.6,138.48,101.1686]
[1767777567582,5.36840344,138.59,138.49,0.31845026]
[1767777568179,6.5,138.57,138.46,6.82315026]
[1767777568381,110.22234242,138.59,138.46,6.82315026]
[1767777568382,5.3680552,138.56,138.46,6.82315026]
[1767777568580,5.3680552,138.55,138.46,6.82315026]
[1767777568883,101.1056,138.58,138.46,6.82315026]
[1767777569179,5.36872278,138.57,138.46,6.82315026]
[1767777569377,5.36872278,138.56,138.46,6.82315026]
[1767777569578,5.36872278,138.55,138.46,6.82315026]
[1767777570484,11.86982278,138.55,138.46,0.31845026]
[1767777570680,5.37210528,138.54,138.46,0.31845026]
[1767777570879,5.37210528,138.53,138.46,0.31845026]
[1767777571182,6.5011,138.55,138.46,0.31845026]
[1767777571380,5.37136217,138.54,138.46,0.31845026]
[1767777571579,5.37136217,138.53,138.46,0.31845026]
[1767777571779,6.5011,138.55,138.46,0.31845026]
[1767777571988,5.37135612,138.54,138.46,0.31845026]
[1767777572181,6.5011,138.55,138.46,0.31845026]
[1767777572381,5.37143715,138.54,138.46,0.31845026]
[1767777572679,6.5011,138.55,138.46,0.31845026]
[1767777572879,5.37128153,138.54,138.46,0.31845026]
[1767777573074,6.5011,138.55,138.46,0.31845026]
[1767777573281,5.37203125,138.54,138.46,0.31845026]
[1767777573579,6.5011,138.55,138.46,0.31845026]
[1767777573780,5.37197741,138.54,138.46,0.31845026]
[1767777573985,6.5011,138.55,138.46,0.31845026]
[1767777574186,5.37198165,138.54,138.46,0.31845026]
[1767777574387,6.4997,138.58,138.47,6.81413136]
[1767777574583,5.37367334,138.57,138.47,6.81413136]
[1767777574780,6.4997,138.58,138.47,6.81413136]
[1767777574781,5.37367334,138.56,138.47,6.81413136]